bitfinex-derivatives/quotes_BNBF0:USTF0_20251002
["timestamp","ask_amount","ask_price","bid_price","bid_amount"]
[1759401467003,0.53385943,1043.7,1042.2,3.02846285]
[1759401467204,0.53385943,1043.6,1042.2,3.02846285]
[1759401467504,0.53385943,1043.5,1042.2,3.02846285]
[1759401467703,0.53385943,1043.4,1042.2,3.02846285]
[1759401467905,0.85401606,1044.0,1042.2,3.02846285]
[1759401468104,0.53381407,1043.9,1042.2,3.02846285]
[1759401468404,0.53381407,1043.8,1042.2,3.02846285]
[1759401468706,0.53381407,1043.7,1042.2,3.02846285]
[1759401468904,0.53381407,1043.6,1042.2,3.02846285]
[1759401469203,0.53381407,1043.5,1042.2,3.02846285]
[1759401469403,0.53381407,1043.4,1042.2,3.02846285]
[1759401469706,0.85401606,1044.0,1042.2,3.02846285]
[1759401469904,0.53373659,1043.9,1042.2,3.02846285]
[1759401470204,0.53373659,1043.8,1042.2,3.02846285]
[1759401470505,0.53373659,1043.7,1042.2,3.02846285]
[1759401470702,0.53373659,1043.6,1042.2,3.02846285]
[1759401470905,0.53373659,1043.5,1042.2,3.02846285]
[1759401471104,0.53373659,1043.4,1042.2,3.02846285]
[1759401471304,0.85401606,1044.0,1042.2,3.02846285]
[1759401471505,0.5336794,1043.9,1042.2,3.02846285]
[1759401471703,0.5336794,1043.8,1042.2,1.735]
[1759401471906,0.85401606,1044.7,1042.2,1.735]
[1759401471907,0.5336794,1043.7,1042.2,1.735]
[1759401472108,0.16675731,1044.4,1042.2,1.735]
[1759401472308,0.53352687,1044.3,1042.2,1.735]
[1759401472508,0.53352687,1044.2,1042.2,1.735]
[1759401472717,0.53352687,1044.1,1042.2,1.735]
[1759401472909,0.53352687,1044.0,1042.2,1.735]
[1759401473107,0.53352687,1043.9,1042.2,3.02846285]
[1759401473310,0.53352687,1043.8,1042.2,3.02846285]
[1759401473606,0.16673095,1044.5,1042.2,3.02846285]
[1759401473811,0.53310752,1044.4,1042.2,3.02846285]
[1759401474011,0.53310752,1044.3,1042.2,3.02846285]
[1759401474310,0.53310752,1044.2,1042.2,3.02846285]
[1759401474511,0.53310752,1044.1,1042.3,1.29346285]
[1759401474706,0.53310752,1044.0,1042.3,1.29346285]
[1759401474907,0.53310752,1043.9,1042.3,1.29346285]
[1759401475210,0.53310752,1043.8,1042.2,3.02846285]
[1759401475411,0.16673095,1044.5,1042.2,3.02846285]
[1759401475708,0.53273299,1044.4,1042.3,1.29346285]
[1759401475906,0.53273299,1044.3,1042.3,1.29346285]
[1759401476112,0.53273299,1044.2,1042.3,1.29346285]
[1759401476312,0.53273299,1044.1,1042.2,3.02846285]
[1759401476512,0.53273299,1044.0,1042.2,3.02846285]
[1759401476713,0.53273299,1043.9,1042.2,3.02846285]
[1759401476925,0.53273299,1043.8,1042.2,1.735]
[1759401477114,0.16673095,1044.5,1042.3,1.497]
[1759401477409,0.53259083,1044.4,1042.3,1.497]
[1759401477616,0.53259083,1044.3,1042.3,1.497]
[1759401477816,0.53259083,1044.2,1042.3,1.497]
[1759401478011,0.53259083,1044.1,1042.3,2.79046285]
[1759401478215,0.53259083,1044.0,1042.5,1.29346285]
[1759401478511,0.53259083,1043.9,1042.5,1.29346285]
[1759401478714,0.53259083,1043.8,1042.5,1.29346285]
[1759401478914,0.85401606,1044.3,1042.5,1.29346285]
[1759401479124,0.53238022,1044.2,1042.5,1.29346285]
[1759401479313,0.53238022,1044.1,1042.5,1.29346285]
[1759401479510,0.53238022,1044.0,1042.4,1.29346285]
[1759401479809,0.53238022,1043.9,1042.4,1.29346285]
[1759401480010,0.16673095,1044.5,1042.3,2.79046285]
[1759401480214,0.53225365,1044.4,1042.3,2.79046285]
[1759401480415,0.53225365,1044.3,1042.3,2.79046285]
[1759401480715,0.53225365,1044.2,1042.3,2.79046285]
[1759401480912,0.53225365,1044.1,1042.3,2.79046285]
[1759401481113,0.53225365,1044.0,1042.3,2.79046285]
[1759401481416,0.16673095,1044.5,1042.6,1.29346285]
[1759401481616,0.53208226,1044.4,1042.6,1.29346285]
[1759401481912,0.53208226,1044.3,1042.6,1.29346285]
[1759401482112,0.53208226,1044.2,1042.4,1.29346285]
[1759401482312,0.16669501,1044.8,1042.4,1.29346285]
[1759401482515,0.53173062,1044.7,1042.4,1.29346285]
[1759401482716,0.53173062,1044.6,1042.6,1.29346285]
[1759401482911,0.53173062,1044.5,1042.3,2.79046285]
[1759401483111,0.53173062,1044.4,1042.7,1.29346285]
[1759401483316,1.02067913,1045.1,1042.8,1.29346285]
[1759401483613,0.85401606,1044.8,1042.3,2.79046285]
[1759401483812,0.53123225,1044.7,1042.3,1.497]
[1759401484011,0.53123225,1044.6,1042.3,1.497]
[1759401484316,0.53123225,1044.5,1042.3,1.497]
[1759401484616,0.53123225,1044.4,1042.3,1.497]
[1759401484817,0.53123225,1044.3,1042.3,1.497]
[1759401485016,0.53123225,1044.2,1042.3,1.497]
[1759401485316,0.53123225,1044.1,1042.3,1.497]
[1759401485516,0.53123225,1044.0,1042.3,1.497]
[1759401485716,0.85401606,1044.7,1042.3,1.497]
[1759401485916,0.53117514,1044.6,1042.3,1.497]
[1759401486113,0.53117514,1044.5,1042.3,1.497]
[1759401486416,0.53117514,1044.4,1042.3,1.497]
[1759401486617,0.53117514,1044.3,1042.3,1.497]
[1759401486818,0.53117514,1044.2,1042.3,1.497]
[1759401487014,0.53117514,1044.1,1042.3,1.497]
[1759401487215,0.53117514,1044.0,1042.3,1.497]
[1759401487419,0.85401606,1044.7,1042.3,1.497]
[1759401487621,0.53099695,1044.6,1042.3,1.497]
[1759401487816,0.53099695,1044.5,1042.3,1.497]
[1759401488015,0.53099695,1044.4,1042.3,1.497]
[1759401488220,0.53099695,1044.3,1042.3,1.497]
[1759401488420,0.53099695,1044.2,1042.3,1.497]
[1759401488621,0.53099695,1044.1,1042.3,1.497]
[1759401488818,0.53099695,1044.0,1042.3,1.497]
[1759401489018,0.85401606,1044.8,1042.3,1.497]
[1759401489216,0.53088229,1044.7,1042.3,1.497]
[1759401489518,0.53088229,1044.6,1042.3,1.497]
[1759401489717,0.53088229,1044.5,1042.3,1.497]
[1759401489921,0.53088229,1044.4,1042.3,1.497]
[1759401490217,0.53088229,1044.3,1042.3,1.497]
[1759401490416,0.53088229,1044.2,1042.3,1.497]
[1759401490620,0.53088229,1044.1,1042.3,1.497]
[1759401490817,0.53088229,1044.0,1042.3,1.497]
[1759401491019,0.85401606,1044.7,1042.3,1.497]
[1759401491218,0.53083674,1044.6,1042.3,1.497]
[1759401491420,0.53083674,1044.5,1042.3,1.497]
[1759401491617,0.53083674,1044.4,1042.3,1.497]
[1759401491821,0.53083674,1044.3,1042.3,1.497]
[1759401492017,0.53083674,1044.2,1042.3,1.497]
[1759401492223,0.53083674,1044.1,1042.3,1.497]
[1759401492423,0.53083674,1044.0,1042.3,1.497]
[1759401492719,0.85401606,1044.8,1042.3,1.497]
[1759401492919,0.53086218,1044.7,1042.3,1.497]
[1759401493122,0.53086218,1044.6,1042.3,1.497]
[1759401493319,0.53086218,1044.5,1042.3,1.497]
[1759401493617,0.53086218,1044.4,1042.3,1.497]
[1759401493817,0.53086218,1044.3,1042.3,1.497]
[1759401494022,0.53086218,1044.2,1042.3,1.497]
[1759401494322,0.53086218,1044.1,1042.3,1.497]
[1759401494519,0.53086218,1044.0,1042.3,1.497]
[1759401494819,0.85401606,1044.8,1042.3,1.497]
[1759401495019,1.38490806,1044.7,1042.3,1.497]
[1759401495220,0.530892,1044.6,1042.3,1.497]
[1759401495423,0.530892,1044.5,1042.3,1.497]
[1759401495621,0.530892,1044.4,1042.3,1.497]
[1759401495821,0.530892,1044.3,1042.3,1.497]
[1759401496122,0.530892,1044.2,1042.3,1.497]
[1759401496421,0.530892,1044.1,1042.3,1.497]
[1759401496621,0.85401606,1044.8,1042.3,1.497]
[1759401496825,0.53060995,1044.7,1042.3,1.497]
[1759401497022,0.53060995,1044.6,1042.3,1.497]
[1759401497228,0.53060995,1044.5,1042.3,1.497]
[1759401497425,0.53060995,1044.4,1042.3,1.497]
[1759401497625,0.53060995,1044.3,1042.3,1.497]
[1759401497824,0.53060995,1044.2,1042.3,1.497]
[1759401498024,0.53060995,1044.1,1042.3,1.497]
[1759401498223,0.53060995,1044.0,1042.3,1.497]
[1759401498424,0.85401606,1044.8,1042.3,1.497]
[1759401498627,0.53076244,1044.7,1042.3,1.497]
[1759401498825,0.53076244,1044.6,1042.3,1.497]
[1759401499030,0.53076244,1044.5,1042.3,1.497]
[1759401499324,0.53076244,1044.4,1042.3,1.497]
[1759401499530,0.53076244,1044.3,1042.4,1.29346285]
[1759401499729,0.53076244,1044.2,1042.5,1.29346285]
[1759401500029,0.85401606,1044.7,1042.5,1.29346285]
[1759401500226,0.53066391,1044.6,1042.5,1.29346285]
[1759401500427,0.53066391,1044.5,1042.4,1.29346285]
[1759401500726,0.53066391,1044.4,1042.4,1.29346285]
[1759401500930,0.53066391,1044.3,1042.4,1.29346285]
[1759401501131,0.53066391,1044.2,1042.3,2.79046285]
[1759401501331,0.85401606,1044.8,1042.3,2.79046285]
[1759401501332,0.85401606,1044.9,1042.4,1.29346285]
[1759401501632,0.53077073,1044.8,1042.4,1.29346285]
[1759401501832,0.53077073,1044.7,1042.4,1.29346285]
[1759401502033,0.53077073,1044.6,1042.4,1.29346285]
[1759401502230,0.53077073,1044.5,1042.6,1.29346285]
[1759401502530,0.53077073,1044.4,1042.7,1.29346285]
[1759401502733,0.85401606,1044.8,1042.7,1.29346285]
[1759401502734,0.53077073,1044.3,1042.7,1.29346285]
[1759401502932,0.85401606,1044.8,1042.8,1.29346285]
[1759401503232,0.53071778,1044.7,1042.5,1.29346285]
[1759401503530,0.53071778,1044.6,1042.5,1.29346285]
[1759401503735,0.53071778,1044.5,1042.5,1.29346285]
[1759401504036,0.53071778,1044.4,1042.5,1.29346285]
[1759401504232,0.53051556,1044.3,1042.4,1.29346285]
[1759401504435,1.02067913,1045.1,1042.4,1.29346285]
[1759401504634,0.53055668,1045.0,1042.4,1.29346285]
[1759401504838,0.53055668,1044.9,1042.4,1.29346285]
[1759401505133,0.53055668,1044.8,1042.4,1.29346285]
[1759401505337,0.53055668,1044.7,1042.4,1.29346285]
[1759401505639,0.53055668,1044.6,1042.4,1.29346285]
[1759401505836,0.53055668,1044.5,1042.4,1.29346285]
[1759401506039,0.53055668,1044.4,1042.4,1.29346285]
[1759401506238,1.02067913,1045.1,1042.4,1.29346285]
[1759401506539,0.53042952,1045.0,1042.4,1.29346285]
[1759401506739,0.53042952,1044.9,1042.5,1.29346285]
[1759401506935,0.53042952,1044.8,1042.5,1.29346285]
[1759401507236,0.53042952,1044.7,1042.4,1.29346285]
[1759401507539,0.53042952,1044.6,1042.4,1.29346285]
[1759401507839,0.53042952,1044.5,1042.5,1.117]
[1759401508038,0.53042952,1044.4,1042.5,1.117]
[1759401508234,0.16666307,1045.1,1042.5,2.41046285]
[1759401508538,0.53019429,1045.0,1042.5,2.41046285]
[1759401508736,0.53019429,1044.9,1042.6,1.29346285]
[1759401508938,0.53019429,1044.8,1042.7,1.29346285]
[1759401509239,0.53019429,1044.7,1042.6,1.29346285]
[1759401509436,0.53019429,1044.6,1042.7,1.29346285]
[1759401509737,0.53014605,1044.5,1042.5,2.41046285]
[1759401509942,0.85401606,1045.3,1042.5,2.41046285]
[1759401510136,0.53013903,1045.2,1042.5,2.41046285]
[1759401510335,0.53013903,1045.1,1042.5,2.41046285]
[1759401510539,0.53013903,1045.0,1042.5,2.41046285]
[1759401510750,0.53013903,1044.9,1042.5,2.41046285]
[1759401510947,0.53013903,1044.8,1042.5,2.41046285]
[1759401511146,0.53013903,1044.7,1042.6,1.29346285]
[1759401511348,0.53013903,1044.6,1042.7,1.29346285]
[1759401511552,0.53013903,1044.5,1042.6,1.29346285]
[1759401511848,0.85401606,1045.1,1042.6,1.29346285]
[1759401512052,0.5300653,1045.0,1042.5,1.117]
[1759401512253,0.85401606,1044.8,1042.7,1.29346285]
[1759401512553,0.5300653,1044.7,1042.7,1.29346285]
[1759401512750,0.5300653,1044.6,1042.7,1.29346285]
[1759401512949,0.5300653,1044.5,1042.5,1.117]
[1759401513253,0.5300653,1044.4,1042.5,1.117]
[1759401513453,0.1666535,1045.4,1042.5,1.117]
[1759401513650,0.53002948,1045.3,1042.5,1.117]
[1759401513852,0.53002948,1045.2,1042.5,1.117]
[1759401514050,0.53002948,1045.1,1042.5,1.117]
[1759401514253,0.53002948,1045.0,1042.5,1.117]
[1759401514450,0.53002948,1044.9,1042.5,1.117]
[1759401514648,0.53002948,1044.8,1042.5,1.117]
[1759401514850,0.53002948,1044.7,1042.5,1.117]
[1759401515049,0.53002948,1044.6,1042.5,1.117]
[1759401515253,0.53002948,1044.5,1042.5,2.41046285]
[1759401515554,0.85401606,1045.2,1042.5,2.41046285]
[1759401515752,0.52994395,1045.1,1042.7,1.29346285]
[1759401515954,0.52994395,1045.0,1042.7,1.29346285]
[1759401516154,0.52994395,1044.9,1042.7,1.29346285]
[1759401516356,0.52994395,1044.8,1042.8,1.29346285]
[1759401516655,0.52994395,1044.7,1042.7,1.29346285]
[1759401516852,0.1666535,1045.4,1042.7,1.29346285]
[1759401517057,0.52971857,1045.3,1042.8,1.29346285]
[1759401517253,0.52971857,1045.2,1042.8,1.29346285]
[1759401517457,0.52971857,1045.1,1042.7,1.29346285]
[1759401517653,0.52971857,1045.0,1042.7,1.29346285]
[1759401517852,0.52971857,1044.9,1042.7,1.29346285]
[1759401518054,0.16659047,1045.6,1042.6,1.29346285]
[1759401518252,0.52936582,1045.5,1042.7,1.29346285]
[1759401518459,0.52936582,1045.4,1042.7,1.29346285]
[1759401518659,0.52936582,1045.3,1043.0,1.29346285]
[1759401518956,1.02060653,1045.6,1043.0,1.29346285]
[1759401518957,0.52936582,1045.2,1043.0,1.29346285]
[1759401519155,0.52936582,1045.1,1042.9,1.29346285]
[1759401519361,0.52936582,1045.0,1043.0,1.29346285]
[1759401519557,0.52936582,1044.9,1043.0,1.29346285]
[1759401519857,0.85401606,1045.4,1043.1,1.29346285]
[1759401520062,0.52925693,1045.3,1043.0,1.29346285]
[1759401520360,0.52925693,1045.2,1042.9,1.29346285]
[1759401520558,0.52925693,1045.1,1042.9,1.29346285]
[1759401520757,39.42807502,1045.8,1043.0,1.29346285]
[1759401520956,0.52906834,1045.7,1043.0,1.29346285]
[1759401521161,0.52906834,1045.6,1043.0,1.29346285]
[1759401521355,0.52906834,1045.5,1043.0,1.29346285]
[1759401521557,0.52906834,1045.4,1043.0,1.29346285]
[1759401521756,0.52906834,1045.3,1043.0,1.29346285]
[1759401521960,0.52906834,1045.2,1043.0,1.29346285]
[1759401522161,0.52906834,1045.1,1043.0,1.29346285]
[1759401522360,39.42807502,1045.8,1043.0,1.29346285]
[1759401522557,0.52880619,1045.7,1043.0,1.29346285]
[1759401522761,0.52880619,1045.6,1043.0,1.29346285]
[1759401522962,0.52880619,1045.5,1042.9,1.29346285]
[1759401523162,0.52880619,1045.4,1042.8,1.29346285]
[1759401523359,0.52880619,1045.3,1042.8,1.29346285]
[1759401523558,0.52880619,1045.2,1042.8,1.29346285]
[1759401523761,0.52880619,1045.1,1042.8,1.29346285]
[1759401523959,0.52880619,1045.0,1042.7,1.29346285]
[1759401524260,1.0205866,1045.8,1042.7,1.29346285]
[1759401524562,0.52854168,1045.7,1042.7,1.29346285]
[1759401524763,0.52854168,1045.6,1042.7,1.29346285]
[1759401524962,0.52854168,1045.5,1042.7,1.29346285]
[1759401525160,0.52854168,1045.4,1042.7,1.29346285]
[1759401525359,0.52854168,1045.3,1042.7,1.29346285]
[1759401525559,0.52854168,1045.2,1042.8,1.29346285]
[1759401525761,0.52854168,1045.1,1042.8,1.29346285]
[1759401525960,0.52854168,1045.0,1042.8,1.29346285]
[1759401526261,0.5283975,1044.9,1042.9,1.29346285]
[1759401526461,0.85401606,1045.4,1042.9,1.29346285]
[1759401526664,0.52847546,1045.3,1042.9,1.29346285]
[1759401526861,0.52847546,1045.2,1042.9,1.29346285]
[1759401527163,0.52847546,1045.1,1042.9,1.29346285]
[1759401527362,0.52847546,1045.0,1043.0,1.357]
[1759401527565,0.52847546,1044.9,1043.0,1.357]
[1759401527864,0.52847546,1044.8,1043.0,1.357]
[1759401528064,0.85401606,1045.5,1043.0,1.357]
[1759401528264,0.52853145,1045.4,1043.0,1.357]
[1759401528465,0.52853145,1045.3,1043.0,1.357]
[1759401528661,0.52853145,1045.2,1043.0,1.357]
[1759401528861,0.52853145,1045.1,1043.0,1.357]
[1759401529062,0.52853145,1045.0,1043.0,1.357]
[1759401529365,0.52853145,1044.9,1043.0,1.357]
[1759401529563,0.52853145,1044.8,1043.0,1.357]
[1759401529762,0.85401606,1045.5,1043.0,1.357]
[1759401529962,0.52874207,1045.4,1043.0,1.357]
[1759401530263,0.52874207,1045.3,1043.0,1.357]
[1759401530462,0.52874207,1045.2,1043.0,1.357]
[1759401530764,0.52874207,1045.1,1043.0,1.357]
[1759401530963,0.52874207,1045.0,1043.0,1.357]
[1759401531263,0.52874207,1044.9,1043.0,1.357]
[1759401531467,0.52874207,1044.8,1043.0,1.357]
[1759401531766,0.85401606,1045.5,1043.0,1.357]
[1759401531965,0.52901595,1045.4,1043.0,1.357]
[1759401532167,0.52901595,1045.3,1043.0,1.357]
[1759401532368,0.52901595,1045.2,1043.0,1.357]
[1759401532563,0.85401606,1045.0,1043.0,1.357]
[1759401532764,0.52901595,1044.9,1043.0,1.357]
[1759401532964,0.52901595,1044.8,1043.0,1.357]
[1759401533164,0.52901595,1044.7,1043.0,1.357]
[1759401533364,0.52901595,1044.6,1043.0,1.357]
[1759401533564,0.52901595,1044.5,1043.0,1.357]
[1759401533764,0.52901595,1044.4,1043.0,1.357]
[1759401533968,0.85401606,1045.2,1043.0,1.357]
[1759401534268,0.52928397,1045.1,1043.0,1.357]
[1759401534567,0.85401606,1045.2,1043.0,1.357]
[1759401534568,0.52928397,1045.0,1043.0,1.357]
[1759401534765,0.52928397,1044.9,1043.0,1.357]
[1759401534968,0.52928397,1044.8,1043.0,1.357]
[1759401535166,0.52928397,1044.7,1043.0,1.357]
[1759401535365,0.52928397,1044.6,1043.0,1.357]
[1759401535570,0.52928397,1044.5,1043.0,1.357]
[1759401535771,0.52928397,1044.4,1043.0,1.357]
[1759401535971,0.85401606,1045.2,1043.0,1.357]
[1759401536172,0.52946643,1045.1,1043.0,1.357]
[1759401536472,0.52946643,1045.0,1043.0,1.357]
[1759401536672,0.52946643,1044.9,1043.0,1.357]
[1759401536872,0.52946643,1044.8,1043.0,1.357]
[1759401537069,0.52946643,1044.7,1043.0,1.357]
[1759401537272,0.85401606,1045.2,1043.0,1.357]
[1759401537273,0.52946643,1044.6,1043.0,1.357]
[1759401537472,0.85401606,1045.2,1043.0,1.357]
[1759401537473,0.52946643,1044.5,1043.0,1.357]
[1759401537673,0.52946643,1044.4,1043.0,1.357]
[1759401537973,0.16657054,1045.8,1043.0,1.357]
[1759401537974,0.85401606,1045.1,1043.0,1.357]
[1759401538173,0.52961455,1045.0,1043.0,1.357]
[1759401538469,0.52961455,1044.9,1043.0,1.357]
[1759401538673,0.52961455,1044.8,1043.0,1.357]
[1759401538870,0.52961455,1044.7,1043.0,1.357]
[1759401539074,0.52961455,1044.6,1043.0,1.357]
[1759401539276,0.52961455,1044.5,1043.0,1.357]
[1759401539472,0.85401606,1045.1,1043.0,1.357]
[1759401539672,0.52980442,1045.0,1043.0,1.357]
[1759401539870,0.52980442,1044.9,1043.0,1.357]
[1759401540072,0.52980442,1044.8,1043.0,1.357]
[1759401540272,0.52980442,1044.7,1043.0,1.357]
[1759401540468,0.16657054,1045.8,1043.0,1.357]
[1759401540469,0.52980442,1044.6,1043.0,1.357]
[1759401540671,0.52980442,1044.5,1043.0,1.357]
[1759401540873,0.85401606,1045.4,1043.0,1.357]
[1759401541074,0.52979726,1045.3,1043.0,1.357]
[1759401541273,0.52979726,1045.2,1042.3,1.29346285]
[1759401541472,0.52979726,1045.1,1042.2,1.29346285]
[1759401541670,0.52979726,1045.0,1042.2,1.29346285]
[1759401541872,0.52979726,1044.9,1042.3,1.29346285]
[1759401542075,0.52979726,1044.9,1041.5,38.46080115]
[1759401542076,0.52979726,1044.8,1042.6,1.29346285]
[1759401542372,1.38381332,1044.7,1042.5,1.29346285]
[1759401542573,0.52979726,1044.6,1042.7,1.644]
[1759401542774,0.52979726,1044.5,1042.7,1.644]
[1759401542975,0.52979726,1044.4,1042.7,1.644]
[1759401543175,0.52979726,1044.3,1042.7,1.644]
[1759401543375,0.52979726,1044.2,1042.7,1.644]
[1759401543675,0.85401606,1044.7,1042.7,1.644]
[1759401543874,0.53002367,1044.6,1042.7,1.644]
[1759401544175,0.53002367,1044.5,1042.7,1.644]
[1759401544374,0.53002367,1044.4,1042.7,1.644]
[1759401544577,0.53002367,1044.3,1042.7,1.644]
[1759401544780,0.53002367,1044.2,1042.7,1.644]
[1759401544978,0.85401606,1044.9,1042.7,1.644]
[1759401545181,0.53005081,1044.8,1042.7,1.644]
[1759401545382,1.38406687,1044.7,1042.8,1.578]
[1759401545681,0.53005081,1044.6,1042.8,1.578]
[1759401545876,0.53005081,1044.5,1042.8,1.578]
[1759401546079,0.53005081,1044.4,1042.8,1.578]
[1759401546280,0.53005081,1044.3,1042.8,1.578]
[1759401546478,0.53005081,1044.2,1042.8,1.578]
[1759401546678,0.53005081,1044.1,1042.8,1.578]
[1759401546880,0.53005081,1044.0,1042.8,1.578]
[1759401547080,0.85401606,1044.8,1042.8,1.578]
[1759401547280,0.53029448,1044.7,1042.8,1.578]
[1759401547481,0.53029448,1044.6,1042.8,1.578]
[1759401547681,0.53029448,1044.5,1042.8,1.578]
[1759401547878,0.53029448,1044.4,1042.8,1.578]
[1759401548178,0.53029448,1044.3,1042.8,1.578]
[1759401548379,0.53029448,1044.2,1042.8,1.578]
[1759401548581,0.53029448,1044.1,1042.8,1.578]
[1759401548881,0.53029448,1044.0,1042.8,1.578]
[1759401549081,0.53029448,1043.9,1042.8,1.578]
[1759401549276,0.85401606,1044.5,1042.8,1.578]
[1759401549582,1.38425514,1044.4,1042.8,1.578]
[1759401549777,0.53023908,1044.3,1042.8,1.578]
[1759401549977,0.53023908,1044.2,1042.8,1.578]
[1759401550177,0.53023908,1044.1,1042.8,1.578]
[1759401550377,0.53023908,1044.0,1042.8,1.578]
[1759401550580,0.53023908,1043.9,1042.8,1.578]
[1759401550878,0.85401606,1044.6,1042.8,1.578]
[1759401551078,0.5302105,1044.5,1042.8,1.578]
[1759401551278,0.5302105,1044.4,1042.8,1.578]
[1759401551481,0.5302105,1044.3,1042.8,1.578]
[1759401551675,0.85401606,1044.6,1042.8,1.578]
[1759401551676,0.5302105,1044.2,1042.8,1.578]
[1759401551879,0.85401606,1044.8,1042.8,1.578]
[1759401552078,0.53002717,1044.7,1042.8,1.578]
[1759401552281,0.53002717,1044.6,1042.8,1.578]
[1759401552478,0.53002717,1044.5,1042.8,1.578]
[1759401552781,0.53002717,1044.4,1042.8,1.578]
[1759401552981,0.53002717,1044.3,1042.8,1.578]
[1759401553181,0.53002717,1044.2,1042.8,1.578]
[1759401553480,0.85401606,1045.0,1042.8,1.578]
[1759401553681,0.53011359,1044.9,1042.8,1.578]
[1759401553882,0.53011359,1044.8,1042.8,1.578]
[1759401554078,0.53011359,1044.7,1042.8,1.578]
[1759401554282,0.53011359,1044.6,1042.8,1.578]
[1759401554481,0.53011359,1044.5,1042.8,1.578]
[1759401554680,0.53011359,1044.4,1042.8,1.578]
[1759401554883,0.53011359,1044.3,1042.8,1.578]
[1759401555080,0.53011359,1044.2,1042.8,1.578]
[1759401555284,0.85401606,1045.0,1042.8,1.578]
[1759401555481,0.53021222,1044.9,1042.8,1.578]
[1759401555680,0.53021222,1044.8,1042.8,1.578]
[1759401555881,0.53021222,1044.7,1042.8,1.578]
[1759401556185,0.53021222,1044.6,1042.8,1.578]
[1759401556487,0.53021222,1044.5,1042.8,1.578]
[1759401556681,0.53021222,1044.4,1042.8,1.578]
[1759401556881,0.53021222,1044.3,1042.8,1.578]
[1759401557080,0.53021222,1044.2,1042.8,1.578]
[1759401557280,0.85401606,1044.9,1042.8,1.578]
[1759401557584,0.52979313,1044.8,1042.8,1.578]
[1759401557885,0.52979313,1044.7,1042.8,1.578]
[1759401558186,0.52979313,1044.6,1042.8,1.578]
[1759401558485,0.52979313,1044.5,1042.8,1.578]
[1759401558684,0.52979313,1044.4,1042.8,1.578]
[1759401558885,0.52979313,1044.3,1042.8,1.578]
[1759401559086,0.52979313,1044.2,1042.8,1.578]
[1759401559379,0.85401606,1044.9,1042.8,1.578]
[1759401559583,0.52992261,1044.8,1042.8,1.578]
[1759401559781,0.52992261,1044.7,1042.9,1.246]
[1759401560085,0.52992261,1044.6,1042.9,1.246]
[1759401560384,0.52992261,1044.5,1042.9,1.246]
[1759401560581,0.52992261,1044.4,1042.9,1.246]
[1759401560786,0.52992261,1044.3,1042.9,1.246]
[1759401561081,0.85401606,1044.8,1042.9,1.246]
[1759401561287,0.52988728,1044.7,1042.9,1.246]
[1759401561585,0.52988728,1044.6,1042.9,1.246]
[1759401561784,0.52988728,1044.5,1042.9,1.246]
[1759401561984,0.52988728,1044.4,1042.9,1.246]
[1759401562186,0.52988728,1044.3,1042.9,1.246]
[1759401562384,0.85401606,1044.9,1042.9,1.246]
[1759401562584,0.52993255,1044.8,1042.9,1.246]
[1759401562886,0.52993255,1044.7,1042.9,1.246]
[1759401563085,0.52993255,1044.6,1042.9,1.246]
[1759401563283,0.85401606,1044.9,1042.9,1.246]
[1759401563284,0.52993255,1044.5,1042.9,1.246]
[1759401563484,0.52993255,1044.4,1042.9,1.246]
[1759401563783,0.52993255,1044.3,1042.9,1.246]
[1759401564084,0.85401606,1044.9,1042.9,1.246]
[1759401564284,0.52987916,1044.8,1042.9,1.246]
[1759401564483,0.52987916,1044.7,1042.9,1.246]
[1759401564687,0.52987916,1044.6,1042.9,1.246]
[1759401564884,0.52987916,1044.5,1042.9,1.246]
[1759401565084,0.52987916,1044.4,1042.9,1.246]
[1759401565285,0.85401606,1044.9,1042.9,1.246]
[1759401565489,0.52988793,1044.8,1042.9,1.246]
[1759401565689,0.52988793,1044.7,1042.9,1.246]
[1759401565890,0.52988793,1044.6,1042.9,1.246]
[1759401566189,0.52988793,1044.5,1042.9,1.246]
[1759401566390,0.52988793,1044.4,1042.9,1.246]
[1759401566588,0.85401606,1045.0,1042.9,1.246]
[1759401566888,0.5298778,1044.9,1042.9,1.246]
[1759401567082,0.5298778,1044.8,1042.9,1.246]
[1759401567288,0.5298778,1044.7,1042.9,1.246]
[1759401567488,0.5298778,1044.6,1042.9,1.246]
[1759401567686,0.5298778,1044.5,1042.9,1.246]
[1759401567986,0.5298778,1044.4,1042.9,1.246]
[1759401568185,0.85401606,1045.0,1042.9,1.246]
[1759401568388,0.52987642,1044.9,1042.9,1.246]
[1759401568587,0.52987642,1044.8,1042.9,1.246]
[1759401568890,0.52987642,1044.7,1042.9,1.246]
[1759401569086,0.52987642,1044.6,1042.9,1.246]
[1759401569286,0.52987642,1044.5,1042.9,1.246]
[1759401569486,0.85401606,1044.9,1042.9,1.246]
[1759401569689,0.52985028,1044.8,1042.9,1.246]
[1759401569890,0.52985028,1044.7,1042.9,1.246]
[1759401570089,0.52985028,1044.6,1042.9,1.246]
[1759401570288,0.52985028,1044.5,1042.9,1.246]
[1759401570488,0.52985028,1044.4,1042.9,1.246]
[1759401570692,0.85401606,1045.1,1042.9,1.246]
[1759401570891,0.52988147,1045.0,1042.8,1.578]
[1759401571194,0.52988147,1044.9,1042.8,1.578]
[1759401571394,0.52988147,1044.8,1042.8,1.578]
[1759401571591,0.52988147,1044.7,1042.8,1.578]
[1759401571794,0.52988147,1044.6,1042.8,1.578]
[1759401571992,0.52988147,1044.5,1042.8,1.578]
[1759401572191,0.52988147,1044.4,1042.8,1.578]
[1759401572494,0.52992723,1044.3,1042.8,1.578]
[1759401572692,0.85401606,1045.0,1042.8,1.578]
[1759401572895,0.52992723,1044.9,1042.9,1.39]
[1759401573195,0.52992723,1044.8,1042.9,1.39]
[1759401573397,0.52992723,1044.7,1042.9,1.39]
[1759401573692,0.52992723,1044.6,1042.9,1.39]
[1759401573894,0.52992723,1044.5,1042.9,1.39]
[1759401574093,0.52992723,1044.4,1042.9,1.39]
[1759401574296,0.52992723,1044.3,1042.9,1.39]
[1759401574495,0.52992723,1044.2,1042.9,1.39]
[1759401574793,0.85401606,1044.8,1042.9,1.39]